fUSD/lending_fUSD_20250523
["ID","MTS","AMOUNT","RATE_DAILY","PERIOD"]
[362106427,1748001055477,-563.066994,0.00027422,7]
[362106428,1748001055487,-210.458112,0.00027423,7]
[362106429,1748001055498,-210.458112,0.00027423,7]
[362106430,1748001055508,-171.84227,0.00027423,7]
[362106431,1748001055519,-171.84227,0.00027423,7]
[362106432,1748001055529,-210.458112,0.00027424,7]
[362106433,1748001055539,-210.458112,0.00027424,7]
[362106434,1748001055549,-171.84227,0.00027424,7]
[362106435,1748001055559,-171.842275,0.00027424,7]
[362106436,1748001055574,-444.0,0.0002745,5]
[362106437,1748001055584,-504.06119418,0.00027473,5]
[362106438,1748001055594,-500.0,0.00027473,5]
[362106439,1748001055604,-1247.67,0.00027479,2]
[362106440,1748001055614,-12614.7272137,0.00027483,3]
[362106441,1748001055625,-210.458112,0.00027493,7]
[362106442,1748001055635,-210.458112,0.00027493,7]
[362106443,1748001055645,-12614.7272137,0.00027493,3]
[362106444,1748001055654,-151.0,0.00027494,7]
[362106445,1748001055664,-151.0,0.00027494,7]
[362106446,1748001055674,-151.0,0.00027494,7]
[362106447,1748001055684,-151.0,0.00027494,7]
[362106448,1748001055695,-151.0,0.00027494,7]
[362106449,1748001055706,-210.458112,0.00027494,7]
[362106450,1748001055716,-210.458112,0.00027494,7]
[362106451,1748001055726,-151.688514,0.00027503,7]
[362106452,1748001055735,-151.0,0.00027503,7]
[362106453,1748001055746,-151.0,0.00027503,7]
[362106454,1748001055755,-151.0,0.00027503,7]
[362106455,1748001055765,-210.458112,0.00027503,7]
[362106456,1748001055775,-210.458112,0.00027503,7]
[362106457,1748001055784,-210.458112,0.00027503,7]
[362106458,1748001055794,-210.458112,0.00027503,7]
[362106459,1748001055804,-210.458112,0.00027504,7]
[362106460,1748001055817,-210.458112,0.00027504,7]
[362106461,1748001055827,-500.0,0.00027512,2]
[362106462,1748001055838,-500.0,0.00027512,2]
[362106463,1748001055848,-500.0,0.00027512,2]
[362106464,1748001055858,-210.458112,0.00027513,7]
[362106465,1748001055869,-210.458109,0.00027513,7]
[362106466,1748001055880,-151.0,0.00027522,7]
[362106467,1748001055890,-151.0,0.00027522,7]
[362106468,1748001055901,-151.0,0.00027522,7]
[362106469,1748001055912,-260.59,0.00027522,2]
[362106470,1748001055921,-500.0,0.00027522,2]
[362106471,1748001055931,-151.0,0.00027523,7]
[362106472,1748001055942,-151.0,0.00027523,7]
[362106473,1748001055952,-151.0,0.00027523,7]
[362106474,1748001055961,-151.0,0.00027523,7]
[362106475,1748001055971,-12614.7272137,0.00027524,3]
[362106476,1748001055981,-420.0,0.00027534,4]
[362106477,1748001055991,-420.0,0.00027534,4]
[362106478,1748001056002,-420.0,0.00027534,4]
[362106479,1748001056012,-420.0,0.00027534,4]
[362106480,1748001056022,-333.08,0.00027534,4]
[362106481,1748001056031,-420.0,0.00027534,4]
[362106482,1748001056042,-420.0,0.00027534,4]
[362106483,1748001056052,-420.0,0.00027534,4]
[362106484,1748001056062,-420.0,0.00027534,4]
[362106485,1748001056074,-420.0,0.00027534,4]
[362106486,1748001056083,-420.0,0.00027534,4]
[362106487,1748001056093,-420.0,0.00027534,4]
[362106488,1748001056103,-420.0,0.00027534,4]
[362106489,1748001056113,-379.13,0.00027534,4]
[362106490,1748001056123,-439.4,0.00027534,4]
[362106491,1748001056133,-420.0,0.00027534,4]
[362106492,1748001056143,-420.0,0.00027534,4]
[362106493,1748001056152,-420.0,0.00027534,4]
[362106494,1748001056162,-420.0,0.00027534,4]
[362106495,1748001056172,-420.0,0.00027534,4]
[362106496,1748001056183,-420.0,0.00027534,4]
[362106497,1748001056193,-420.0,0.00027534,4]
[362106498,1748001056203,-420.0,0.00027534,4]
[362106499,1748001056213,-420.0,0.00027534,4]
[362106500,1748001056223,-420.0,0.00027534,4]
[362106501,1748001056233,-210.22738869,0.00027534,4]
[362106502,1748001056245,-420.0,0.00027534,4]
[362106503,1748001056255,-420.0,0.00027534,4]
[362106504,1748001056265,-420.0,0.00027534,4]
[362106505,1748001056275,-420.0,0.00027534,4]
[362106506,1748001056285,-420.0,0.00027534,4]
[362106507,1748001056295,-126.68071803,0.00027534,4]
[362106508,1748001056532,-293.31928197,0.00027534,4]
[362106509,1748001056543,-421.81595048,0.00027534,4]
[362106510,1748001056553,-420.0,0.00027534,4]
[362106511,1748001056563,-1000.0,0.00027534,2]
[362106512,1748001056575,-420.0,0.00027534,4]
[362106513,1748001056586,-420.0,0.00027534,4]
[362106514,1748001056596,-420.0,0.00027534,4]
[362106515,1748001056606,-420.0,0.00027534,4]
[362106516,1748001056616,-420.0,0.00027534,4]
[362106517,1748001056626,-439.04439016,0.00027534,4]
[362106518,1748001056636,-509.24115007,0.00027534,4]
[362106519,1748001056646,-175.73,0.00027534,4]
[362106520,1748001056656,-560.44785627,0.00027534,4]
[362106521,1748001056666,-420.0,0.00027534,4]
[362106522,1748001056676,-420.0,0.00027534,4]
[362106523,1748001056686,-269.47568096,0.00027534,4]
[362106524,1748001056696,-420.0,0.00027534,4]
[362106525,1748001056707,-420.0,0.00027534,4]
[362106526,1748001056717,-420.0,0.00027534,4]
[362106527,1748001056727,-420.0,0.00027534,4]
[362106528,1748001056737,-420.0,0.00027534,4]
[362106529,1748001056747,-1247.67,0.00027534,2]
[362106530,1748001056757,-171.25569013,0.00027534,4]
[362106531,1748001057147,-168.28317846,0.00027268,2]
[362106532,1748001057158,-249.21629209,0.00027397,4]
[362106533,1748001057170,-170.78370791,0.00027397,4]
[362106534,1748001057180,-420.0,0.00027397,4]
[362106535,1748001057190,-74.16629209,0.00027397,4]
[362106536,1748001057207,-345.83370791,0.00027397,4]
[362106537,1748001057218,-420.0,0.00027397,4]
[362106538,1748001057227,-248.74430987,0.00027534,4]
[362106539,1748001057237,-420.0,0.00027534,4]
[362106540,1748001057248,-420.0,0.00027534,4]
[362106541,1748001057257,-250.0,0.00027534,4]
[362106542,1748001057267,-435.06575508,0.00027534,4]
[362106543,1748001057277,-420.0,0.00027534,4]
[362106544,1748001057286,-420.0,0.00027534,4]
[362106545,1748001057296,-420.0,0.00027534,4]
[362106546,1748001057306,-420.0,0.00027534,4]
[362106547,1748001057319,-420.0,0.00027534,4]
[362106548,1748001057329,-322.89289849,0.00027534,4]
[362106549,1748001057340,-229.65021751,0.00027534,4]
[362106550,1748001057350,-420.0,0.00027534,4]
[362106551,1748001057360,-420.0,0.00027534,4]
[362106552,1748001057371,-420.0,0.00027534,4]
[362106553,1748001057381,-420.0,0.00027534,4]
[362106554,1748001057390,-420.0,0.00027534,4]
[362106555,1748001057400,-358.67,0.00027534,4]
[362106556,1748001057410,-463.68,0.00027534,4]
[362106557,1748001057420,-420.0,0.00027534,4]
[362106558,1748001057430,-420.0,0.00027534,4]
[362106559,1748001057440,-420.0,0.00027534,4]
[362106560,1748001057450,-420.0,0.00027534,4]
[362106561,1748001057461,-562.0,0.00027534,4]
[362106562,1748001057470,-277.0531438,0.00027534,4]
[362106563,1748001057480,-420.0,0.00027534,4]
[362106564,1748001057490,-420.0,0.00027534,4]
[362106565,1748001057500,-420.0,0.00027534,4]
[362106566,1748001057511,-420.0,0.00027534,4]
[362106567,1748001057521,-479.36,0.00027534,4]
[362106568,1748001057531,-420.0,0.00027534,4]
[362106569,1748001057541,-420.0,0.00027534,4]
[362106570,1748001057551,-420.0,0.00027534,4]
[362106571,1748001057560,-545.49,0.00027534,4]
[362106572,1748001057573,-421.0995488,0.00027534,4]
[362106573,1748001057584,-420.0,0.00027534,4]
[362106574,1748001057594,-444.55,0.00027534,4]
[362106575,1748001057604,-420.0,0.00027534,4]
[362106576,1748001057613,-420.0,0.00027534,4]
[362106577,1748001057623,-420.0,0.00027534,4]
[362106578,1748001057633,-497.52802885,0.00027534,4]
[362106579,1748001057643,-420.0,0.00027534,4]
[362106580,1748001057653,-420.0,0.00027534,4]
[362106581,1748001057664,-161.77119993,0.00027534,4]
[362106582,1748001057673,-420.0,0.00027534,4]
[362106583,1748001057683,-420.0,0.00027534,4]
[362106584,1748001057694,-420.0,0.00027534,4]
[362106585,1748001057704,-420.0,0.00027534,4]
[362106586,1748001057714,-4605.55,0.00027534,4]
[362106587,1748001057724,-444.24115063,0.00027534,4]
[362106588,1748001057733,-420.0,0.00027534,4]
[362106589,1748001057743,-420.0,0.00027534,4]
[362106590,1748001057753,-420.0,0.00027534,4]
[362106591,1748001057763,-420.0,0.00027534,4]
[362106592,1748001057772,-420.0,0.00027534,4]
[362106593,1748001057782,-680.34,0.00027534,4]
[362106594,1748001057792,-420.0,0.00027534,4]
[362106595,1748001057801,-420.0,0.00027534,4]
[362106596,1748001057812,-420.0,0.00027534,4]
[362106597,1748001057824,-420.0,0.00027534,4]
[362106598,1748001057834,-420.0,0.00027534,4]
[362106599,1748001057844,-420.0,0.00027534,4]
[362106600,1748001057854,-420.0,0.00027534,4]
[362106601,1748001057864,-420.0,0.00027534,4]
[362106602,1748001057874,-591.73,0.00027534,4]
[362106603,1748001057884,-487.21,0.00027534,4]
[362106604,1748001057894,-398.54003913,0.00027534,4]
[362106605,1748001057907,-21.45996087,0.00027534,4]
[362106606,1748001057920,-420.0,0.00027534,4]
[362106607,1748001057930,-327.60131668,0.00027534,4]
[362106608,1748001057940,-420.0,0.00027534,4]
[362106609,1748001057950,-420.0,0.00027534,4]
[362106610,1748001057960,-420.0,0.00027534,4]
[362106611,1748001057969,-420.0,0.00027534,4]
[362106612,1748001057979,-829.66,0.00027534,4]
[362106613,1748001057990,-420.0,0.00027534,4]
[362106614,1748001058000,-420.0,0.00027534,4]
[362106615,1748001058010,-301.3425874,0.00027534,4]
[362106616,1748001058019,-420.0,0.00027534,4]
[362106617,1748001058029,-437.8650947,0.00027534,4]
[362106618,1748001058038,-429.89055424,0.00027534,4]
[362106619,1748001058049,-261.59,0.00027534,4]
[362106620,1748001058058,-420.0,0.00027534,4]
[362106621,1748001058069,-420.0,0.00027534,4]
[362106622,1748001058079,-420.0,0.00027534,4]
[362106623,1748001058088,-420.0,0.00027534,4]
[362106624,1748001058097,-449.87,0.00027534,4]
[362106625,1748001058107,-420.0,0.00027534,4]
[362106626,1748001058116,-772.87,0.00027534,2]
[362106627,1748001058125,-1704.44448611,0.00027534,4]
[362106628,1748001058138,-343.68943434,0.00027534,4]
[362106629,1748001058150,-314.56607955,0.00027534,4]
[362106630,1748001058159,-420.0,0.00027534,4]
[362106631,1748001058169,-420.0,0.00027534,4]
[362106632,1748001058178,-495.54,0.00027534,4]
[362106633,1748001058187,-420.0,0.00027534,4]
[362106634,1748001058197,-420.0,0.00027534,4]
[362106635,1748001058207,-1450.07,0.00027534,4]
[362106636,1748001058217,-1275.68,0.00027534,4]
[362106637,1748001058226,-420.0,0.00027534,4]
[362106638,1748001058236,-420.0,0.00027534,4]
[362106639,1748001058245,-420.0,0.00027534,4]
[362106640,1748001058255,-420.0,0.00027534,4]
[362106641,1748001058265,-420.0,0.00027534,4]
[362106642,1748001058275,-420.0,0.00027534,4]
[362106643,1748001058284,-420.0,0.00027534,4]
[362106644,1748001058294,-481.16,0.00027534,4]
[362106645,1748001058303,-420.0,0.00027534,4]
[362106646,1748001058313,-441.05,0.00027534,4]
[362106647,1748001058326,-420.0,0.00027534,4]
[362106648,1748001058336,-901.51,0.00027534,4]
[362106649,1748001058345,-420.0,0.00027534,4]
[362106650,1748001058355,-3000.6,0.00027534,4]
[362106651,1748001058366,-420.0,0.00027534,4]
[362106652,1748001058375,-463.31,0.00027534,4]
[362106653,1748001058385,-442.96139705,0.00027534,4]
[362106654,1748001058400,-659.28860295,0.00027534,4]
[362106655,1748001058410,-359.17,0.00027534,4]
[362106656,1748001058419,-420.0,0.00027534,4]
[362106657,1748001058429,-186.14189101,0.00027534,4]
[362106658,1748001058441,-233.85810899,0.00027534,4]
[362106659,1748001058451,-420.0,0.00027534,4]
[362106660,1748001058461,-420.0,0.00027534,4]
[362106661,1748001058470,-420.0,0.00027534,4]
[362106662,1748001058480,-420.0,0.00027534,4]
[362106663,1748001058491,-641.63,0.00027534,4]
[362106664,1748001058501,-322.66188764,0.00027534,4]
[362106665,1748001058511,-420.0,0.00027534,4]
[362106666,1748001058520,-431.35,0.00027534,4]
[362106667,1748001058530,-420.0,0.00027534,4]
[362106668,1748001058539,-420.0,0.00027534,4]
[362106669,1748001058549,-420.0,0.00027534,4]
[362106670,1748001058558,-2083.79,0.00027534,4]
[362106671,1748001058571,-420.0,0.00027534,4]
[362106672,1748001058581,-224.55086044,0.00027534,4]
[362106673,1748001058593,-420.0,0.00027534,4]
[362106674,1748001058603,-420.0,0.00027534,4]
[362106675,1748001058613,-589.73,0.00027534,4]
[362106676,1748001058624,-420.0,0.00027534,4]
[362106677,1748001058634,-420.0,0.00027534,4]
[362106678,1748001058644,-420.0,0.00027534,4]
[362106679,1748001058655,-420.0,0.00027534,4]
[362106680,1748001058665,-2552.45,0.00027534,4]
[362106681,1748001058675,-420.0,0.00027534,2]
[362106682,1748001058685,-420.0,0.00027534,4]
[362106683,1748001058695,-420.0,0.00027534,4]
[362106684,1748001058705,-707.13,0.00027534,4]
[362106685,1748001058715,-420.0,0.00027534,4]
[362106686,1748001058724,-420.0,0.00027534,4]
[362106687,1748001058734,-420.0,0.00027534,4]
[362106688,1748001058743,-426.73148502,0.00027534,4]
[362106689,1748001058752,-473.29,0.00027534,4]
[362106690,1748001058762,-225.33671243,0.00027534,4]
[362106691,1748001058772,-420.0,0.00027534,4]
[362106692,1748001058782,-420.0,0.00027534,4]
[362106693,1748001058791,-239.85694569,0.00027534,4]
[362106694,1748001058802,-420.0,0.00027534,4]
[362106695,1748001058811,-420.0,0.00027534,4]
[362106696,1748001058823,-1336.84,0.00027534,4]
[362106697,1748001058833,-420.0,0.00027534,4]
[362106698,1748001058843,-432.44312035,0.00027534,4]
[362106699,1748001058852,-158.35087944,0.00027534,4]
[362106700,1748001058868,-261.64912056,0.00027534,4]
[362106701,1748001058877,-30.36652049,0.00027534,4]
[362106702,1748001058890,-389.63347951,0.00027534,4]
[362106703,1748001058899,-204.14918485,0.00027534,4]
[362106704,1748001058908,-200.62728277,0.00027534,4]
[362106705,1748001058919,-219.37271723,0.00027534,4]
[362106706,1748001058929,-314.06675257,0.00027534,4]
[362106707,1748001058940,-146.09885095,0.00027534,4]
[362106708,1748001058949,-420.0,0.00027534,4]
[362106709,1748001058960,-40.21570063,0.00027535,2]
[362106710,1748001058971,-599.79999882,0.00027535,2]
[362106711,1748001058982,-5327.12745857,0.00027535,2]
[362106712,1748001058991,-154.5,0.00027559,4]
[362106713,1748001059001,-420.0,0.00027559,4]
[362106714,1748001059012,-420.0,0.00027559,4]
[362106715,1748001059021,-420.0,0.00027559,4]
[362106716,1748001059030,-420.0,0.00027559,4]
[362106717,1748001059039,-420.0,0.00027559,4]
[362106718,1748001059048,-420.0,0.00027559,4]
[362106719,1748001059058,-420.0,0.00027559,4]
[362106720,1748001059067,-420.0,0.00027559,4]
[362106721,1748001059077,-420.0,0.00027559,4]
[362106722,1748001059087,-420.0,0.00027559,4]
[362106723,1748001059096,-420.0,0.00027559,4]
[362106724,1748001059106,-420.0,0.00027559,4]
[362106725,1748001059116,-420.0,0.00027559,4]
[362106726,1748001059126,-64.42033176,0.00027559,4]
[362106727,1748001059138,-137.48966824,0.00027559,4]
[362106728,1748001059147,-420.0,0.00027559,4]
[362106729,1748001059156,-420.0,0.00027559,4]
[362106730,1748001059165,-420.0,0.00027559,4]
[362106731,1748001059174,-420.0,0.00027559,4]
[362106732,1748001059183,-420.0,0.00027559,4]
[362106733,1748001059193,-420.0,0.00027559,4]
[362106734,1748001059201,-363.02,0.00027559,4]
[362106735,1748001059210,-502.10059861,0.00027559,4]
[362106736,1748001059248,-54.91940139,0.00027559,4]
[362106737,1748001059257,-198.19,0.00027559,4]
[362106738,1748001059267,-420.0,0.00027559,4]
[362106739,1748001059279,-420.0,0.00027559,4]
[362106740,1748001059290,-420.0,0.00027559,4]
[362106741,1748001059303,-445.2317929,0.00027559,4]
[362106742,1748001059316,-420.0,0.00027559,4]
[362106743,1748001059331,-420.0,0.00027559,4]
[362106744,1748001059344,-420.0,0.00027559,4]
[362106745,1748001059354,-420.0,0.00027559,4]
[362106746,1748001059367,-420.0,0.00027559,4]
[362106747,1748001059379,-420.0,0.00027559,2]
[362106748,1748001059393,-420.0,0.00027559,4]
[362106749,1748001059405,-420.0,0.00027559,4]
[362106750,1748001059417,-420.0,0.00027559,4]
[362106751,1748001059429,-420.0,0.00027559,4]
[362106752,1748001059442,-420.0,0.00027559,4]
[362106753,1748001059454,-420.0,0.00027559,4]
[362106754,1748001059466,-546.61,0.00027559,4]
[362106755,1748001059478,-385.99702393,0.00027559,4]
[362106756,1748001059490,-364.63,0.00027559,4]
[362106757,1748001059500,-420.0,0.00027559,4]
[362106758,1748001059510,-460.25,0.00027559,4]
[362106759,1748001059524,-420.0,0.00027559,4]
[362106760,1748001059536,-420.0,0.00027559,4]
[362106761,1748001059547,-420.0,0.00027559,4]
[362106762,1748001059559,-420.0,0.00027559,4]
[362106763,1748001059571,-179.62389265,0.00027559,4]
[362106764,1748001059584,-565.96,0.00027559,4]
[362106765,1748001059596,-420.0,0.00027559,4]
[362106766,1748001059609,-487.25,0.00027559,4]
[362106767,1748001059622,-420.0,0.00027559,4]
[362106768,1748001059634,-420.0,0.00027559,4]
[362106769,1748001059646,-420.0,0.00027559,4]
[362106770,1748001059658,-420.0,0.00027559,4]
[362106771,1748001059671,-156.47629288,0.00027559,4]
[362106772,1748001059684,-420.0,0.00027559,4]
[362106773,1748001059696,-488.00663334,0.00027559,4]
[362106774,1748001059707,-420.0,0.00027559,4]
[362106775,1748001059719,-420.0,0.00027559,4]
[362106776,1748001059731,-448.25756401,0.00027559,4]
[362106777,1748001059743,-306.60461522,0.00027559,4]
[362106778,1748001059762,-113.39538478,0.00027559,4]
[362106779,1748001059774,-420.0,0.00027559,4]
[362106780,1748001059789,-531.6794889,0.00027559,4]
[362106781,1748001059802,-549.14,0.00027559,4]
[362106782,1748001059814,-420.0,0.00027559,4]
[362106783,1748001059830,-420.0,0.00027559,4]
[362106784,1748001059842,-420.0,0.00027559,4]
[362106785,1748001059852,-420.0,0.00027559,4]
[362106786,1748001059862,-420.0,0.00027559,4]
[362106787,1748001059873,-56.56212467,0.00027559,4]
[362106788,1748001082736,250.0,0.00015,2]
[362106789,1748001501357,185.95,0.0002633,120]
[362106790,1748001618138,50466.0,0.0002739,120]
[362106791,1748001808494,153.38,0.00013699,2]
[362106793,1748002050232,-153.38,0.00020187,2]
[362106794,1748002050255,-200.0,0.00021644,2]
[362106795,1748002050277,-200.0,0.00022206,2]
[362106796,1748002050298,-250.0,0.00022206,2]
[362106797,1748002050323,-987.23932657,0.00023,5]
[362106798,1748002160126,-1414.0,0.000228,5]
[362106799,1748002160151,-677.42,0.0002422,2]
[362106810,1748002231509,-183.59314081,0.00025462,2]
[362106812,1748002231520,-500.0,0.00025562,2]
[362106814,1748002231529,-196.13,0.00025772,2]
[362106815,1748002231539,-200.0,0.00025777,2]
[362106816,1748002231548,-1710.27,0.00025807,2]
[362106817,1748002231558,-300.0,0.0002581,2]
[362106818,1748002231567,-1200.0,0.0002581,2]
[362106819,1748002231577,-17512.00685919,0.00025811,2]
[362106820,1748002231589,-4389.10314081,0.00025811,2]
[362106821,1748002231598,-1000.0,0.0002582,2]
[362106822,1748002231607,-250.0,0.00025848,2]
[362106823,1748002231617,-462.50604763,0.000259,14]
[362106824,1748002231626,-160.0,0.00026,3]
[362106825,1748002231636,-476.99,0.00026081,2]
[362106826,1748002231645,-206.0,0.00026115,2]
[362106827,1748002231655,-225.0,0.0002612,2]
[362106828,1748002231665,-200.0,0.00026255,2]
[362106829,1748002231674,-183.5931408,0.00026281,2]
[362106830,1748002231684,-300.0,0.00026299,2]
[362106831,1748002231693,-2866.80447842,0.000263,2]
[362106832,1748002231703,-15902.7,0.00026326,2]
[362106833,1748002231713,-207.4,0.00026327,2]
[362106834,1748002231722,-3323.23248946,0.00026333,2]
[362106835,1748002231732,-8682.7413427,0.00026343,2]
[362106836,1748002231747,-1089.0,0.00026343,2]
[362106837,1748002231759,-1798.84122781,0.00026343,2]
[362106840,1748002236904,-300.0,0.0002581,2]
[362106841,1748002236914,-7310.7,0.00026343,2]
[362106842,1748002236927,-4909.905,0.00026343,2]
[362106843,1748002236938,-108.81242949,0.00026343,2]
[362106844,1748002236948,-209.17558261,0.00026357,2]
[362106845,1748002236959,-1422.9,0.00026381,2]
[362106846,1748002236968,-150.0,0.00026399,7]
[362106847,1748002236978,-677.42,0.00026484,2]
[362106848,1748002236987,-462.50604744,0.00026486,15]
[362106849,1748002236997,-451.45,0.00026633,2]
[362106850,1748002237006,-128.66517759,0.00026676,2]
[362106851,1748002237026,-24.71482241,0.00026676,2]
[362106852,1748002237035,-363.16263588,0.00026732,2]
[362106854,1748002237047,-136.82736412,0.00026732,2]
[362106855,1748002237057,-150.99,0.00026732,2]
[362106856,1748002237066,-327.27,0.00026732,2]
[362106857,1748002237076,-150.99,0.00026732,2]
[362106858,1748002237085,-258.835416,0.00026732,4]
[362106859,1748002237095,-206.11701488,0.000268,9]
[362106860,1748002237114,-402.24,0.000268,9]
[362106892,1748002237472,-491.64298512,0.000268,9]
[362106894,1748002237482,-228.00148197,0.00026899,2]
[362106896,1748002237492,-3498.3,0.000269,2]
[362106898,1748002237501,-2923.4,0.000269,2]
[362106900,1748002237511,-999.99,0.000269,2]
[362106902,1748002237520,-9999.99,0.000269,2]
[362106903,1748002237530,-1538.13,0.000269,2]
[362106905,1748002237539,-2338.42,0.000269,2]
[362106907,1748002237549,-30665.63,0.000269,10]
[362106909,1748002237558,-2300.0,0.000269,9]
[362106911,1748002237568,-462.50604744,0.00027072,16]
[362106913,1748002237578,-10498.32057607,0.00027093,2]
[362106915,1748002237588,-167.91,0.00027147,2]
[362106917,1748002237598,-167.62513039,0.00027149,2]
[362106919,1748002237607,-622.06063393,0.00027149,12]
[362106921,1748002237617,-6893.64930075,0.00027149,2]
[362106923,1748002237627,-714.3633,0.00027149,2]
[362106925,1748002237637,-1000.0,0.00027149,2]
[362106927,1748002237646,-2500.0,0.00027149,2]
[362106951,1748002237884,-1151.0,0.00027193,2]
[362106953,1748002237901,-156.587,0.00027233,2]
[362106955,1748002237912,-719.04747942,0.00027233,2]
[362106957,1748002237922,-167.07,0.00027238,2]
[362106959,1748002237932,-11628.93441518,0.00027238,7]
[362106961,1748002237942,-13176.7249577,0.00027239,2]
[362106963,1748002237952,-320.79,0.00027239,2]
[362106965,1748002237964,-2928.16110172,0.00027248,2]
[362106967,1748002237974,-1085.26940586,0.00027248,10]
[362106969,1748002237984,-155.94968735,0.00027248,2]
[362106971,1748002237994,-182.9877736,0.00027248,2]
[362106973,1748002238004,-485.56034909,0.00027248,2]
[362106975,1748002238014,-500.0,0.00027248,2]
[362106977,1748002238027,-500.0,0.00027248,2]
[362106979,1748002238036,-500.0,0.00027248,2]
[362106981,1748002238046,-500.0,0.00027248,2]
[362106982,1748002238056,-326.68728133,0.00027248,2]
[362106984,1748002238065,-282.48125296,0.00027248,2]
[362106986,1748002238074,-500.0,0.00027248,2]
[362106988,1748002238083,-500.0,0.00027248,2]
[362106990,1748002238092,-500.0,0.00027248,2]
[362106992,1748002238102,-500.0,0.00027248,2]
[362106994,1748002238111,-500.0,0.00027248,2]
[362106996,1748002238120,-500.0,0.00027248,2]
[362106998,1748002238130,-500.0,0.00027248,2]
[362107000,1748002238139,-500.0,0.00027248,2]
[362107002,1748002238149,-500.0,0.00027248,2]
[362107003,1748002238158,-500.0,0.00027248,2]
[362107005,1748002238168,-500.0,0.00027248,2]
[362107007,1748002238177,-500.0,0.00027248,2]
[362107009,1748002238187,-500.0,0.00027248,2]
[362107011,1748002238196,-500.0,0.00027248,2]
[362107013,1748002238206,-500.0,0.00027248,2]
[362107015,1748002238222,-500.0,0.00027248,2]
[362107017,1748002238232,-500.0,0.00027248,2]
[362107019,1748002238245,-500.0,0.00027248,2]
[362107021,1748002238256,-500.0,0.00027248,2]
[362107023,1748002238267,-500.0,0.00027248,2]
[362107025,1748002238278,-227.54572915,0.00027248,2]
[362107027,1748002238287,-500.0,0.00027248,2]
[362107029,1748002238297,-500.0,0.00027248,2]
[362107031,1748002238307,-500.0,0.00027248,2]
[362107033,1748002238317,-500.0,0.00027248,2]
[362107035,1748002238328,-500.0,0.00027248,2]
[362107037,1748002238338,-500.0,0.00027248,2]
[362107039,1748002238347,-500.0,0.00027248,2]
[362107041,1748002238357,-500.0,0.00027248,2]
[362107043,1748002238367,-500.0,0.00027248,2]
[362107045,1748002238378,-500.0,0.00027248,2]
[362107047,1748002238388,-500.0,0.00027248,2]
[362107049,1748002238398,-500.0,0.00027248,2]
[362107051,1748002238408,-500.0,0.00027248,2]
[362107053,1748002238418,-500.0,0.00027248,2]
[362107055,1748002238428,-500.0,0.00027248,2]
[362107057,1748002238438,-200.0,0.00027248,2]
[362107059,1748002238450,-500.0,0.00027248,2]
[362107061,1748002238465,-500.0,0.00027248,2]
[362107063,1748002238475,-35955.1194,0.00027249,2]
[362107065,1748002238485,-6550.87560319,0.00027249,2]
[362107067,1748002238500,-3277.2,0.00027249,2]
[362107069,1748002238512,-543.5,0.00027249,2]
[362107072,1748002238529,-272.76113032,0.00027249,2]
[362107074,1748002238542,-321.2461434,0.00027249,2]